[Event "LJ Slovak Open 2022"]
[Site "Liptovsky Jan"]
[Date "2022.06.25"]
[Round "4.21"]
[White "Kulich, Filip"]
[Black "Smusz, Kamil"]
[Result "1/2-1/2"]
[ECO "C41"]
[WhiteElo "1682"]
[BlackElo "1881"]
[Annotator "NA"]
[PlyCount "120"]
[EventDate "2022.06.23"]
[EventType "swiss"]
[EventCountry "SVK"]
[SourceTitle "playchess.com"]
[Source "ChessBase"]
[SourceQuality "1"]
[TimeControl "3600+30"]

1. e4 {[%emt 0:00:38]} d6 {[%emt 0:01:04]} 2. d4 {[%emt 0:00:10]} Nf6 {[%emt 0:00:01]} 3. Nc3 {[%emt 0:00:11]} e5 {[%emt 0:00:02]} 4. Nf3 {[%emt 0:01:03]} Nbd7 {[%emt 0:00:13]} 5. Bc4 {[%emt 0:01:15]} Be7 {[%emt 0:00:02]} 6. O-O {[%emt 0:00:38]} O-O {[%emt 0:00:58]} 7. h3 {[%emt 0:00:40]} c6 {[%emt 0:00:13]} 8. a4 {[%emt 0:00:47]} b6 {[%emt 0:01:08] 8...h6 is the modern continuation.} 9. Be3 {[%emt 0:01:09]} a6 {[%emt 0:01:38]} 10. Qd2 {[%emt 0:01:36] [#]} Qc7 $146 {[%emt 0:02:14]} ({Predecessor:} 10... Rb8 11. Bd3 b5 12. axb5 axb5 13. Ne2 Re8 14. Ng3 g6 15. Ra7 Bf8 16. Rfa1 Bb7 17. Bf1 exd4 18. Qxd4 {0-1 (56) De Abreu,R (2184)-Fominykh,M (2206) Chess.com INT 2020}) 11. Ne1 {[%emt 0:01:06]} Bb7 {[%emt 0:08:42]} 12. d5 {[%emt 0:03:57]} b5 {[%emt 0:16:32]} 13. dxc6 {[%emt 0:04:12]} bxc4 {[%emt 0:05:03]} 14. cxb7 {[%emt 0:09:59]} Qxb7 {[%emt 0:00:02]} 15. f3 {[%emt 0:02:35]} Qxb2 {[%emt 0:05:30]} 16. Rb1 {[%emt 0:01:54]} Qa3 {[%emt 0:00:31]} 17. g4 {[%emt 0:02:33]} Rfb8 {[%emt 0:02:43]} 18. Ng2 {[%emt 0:03:52]} Rxb1 {[%emt 0:09:10]} 19. Rxb1 {[%emt 0:00:23]} Bf8 {[%emt 0:07:57]} 20. g5 {[%emt 0:01:50]} Ne8 {[%emt 0:01:48]} 21. Qd5 {[%emt 0:02:59]} Rc8 {[%emt 0:02:40]} 22. Rb7 {[%emt 0:01:51]} Rc7 {[%emt 0:00:01]} 23. Rxc7 {[%emt 0:00:38]} Nxc7 {[%emt 0:00:00]} 24. Qxc4 {[%emt 0:00:16]} Ne6 {[%emt 0:00:55]} 25. Kf2 {[%emt 0:02:00]} Ndc5 {[%emt 0:00:17]} 26. h4 {[%emt 0:01:08]} Qb2 {[%emt 0:01:06]} 27. Nd5 {[%emt 0:00:59]} Qa1 {[%emt 0:00:12]} 28. Nc3 {[%emt 0:01:05]} Qb2 {[%emt 0:01:22]} 29. Nd5 {[%emt 0:01:59]} Qb7 {[%emt 0:00:15]} 30. h5 {[%emt 0:00:43]} Qc6 {[%emt 0:00:23]} 31. a5 {[%emt 0:02:03]} Nc7 {[%emt 0:01:27]} 32. Bxc5 {[%emt 0:02:31]} Nxd5 {[%emt 0:01:22]} 33. exd5 {[%emt 0:00:30]} Qc8 {[%emt 0:00:48]} 34. Qc3 {[%emt 0:01:19]} dxc5 {[%emt 0:00:26]} 35. Qxe5 {[%emt 0:00:34]} Qd8 {[%emt 0:00:00]} 36. g6 {[%emt 0:00:31]} hxg6 {[%emt 0:00:57]} 37. hxg6 {[%emt 0:00:23]} fxg6 {[%emt 0:00:24]} 38. Qe6+ {[%emt 0:00:20]} Kh7 {[%emt 0:00:03]} 39. Qxa6 {[%emt 0:00:45]} Qxd5 {[%emt 0:00:09]} 40. Qxg6+ {[%emt 0:00:19]} Kg8 {[%emt 0:00:28]} 41. Qd3 {[%emt 0:00:35]} Qa2 {[%emt 0:00:53]} 42. Qb3+ {[%emt 0:00:17]} Qxb3 {[%emt 0:00:13]} 43. cxb3 {[%emt 0:00:07]} Bd6 {[%emt 0:00:08]} 44. Ke3 {[%emt 0:00:50]} Kf7 {[%emt 0:00:43]} 45. Kd3 {[%emt 0:00:30]} Ke6 {[%emt 0:00:56]} 46. Ne3 {[%emt 0:00:39]} Kd7 {[%emt 0:01:00]} 47. Nc4 {[%emt 0:00:30]} Bc7 {[%emt 0:00:26]} 48. Kc3 {[%emt 0:06:09]} Kc6 {[%emt 0:00:32]} 49. b4 {[%emt 0:00:22]} Kb5 {[%emt 0:00:46]} 50. bxc5 {[%emt 0:00:32]} Kxc5 {[%emt 0:00:02]} 51. Kd3 {[%emt 0:01:20]} Bb8 {[%emt 0:00:00]} 52. a6 {[%emt 0:01:34]} Kb5 {[%emt 0:00:38]} 53. Kd4 {[%emt 0:00:21]} Kxa6 {[%emt 0:00:14]} 54. Kd5 {[%emt 0:00:34]} Kb5 {[%emt 0:00:36]} 55. Nd6+ {[%emt 0:00:17]} Bxd6 {[%emt 0:00:47]} 56. Kxd6 {[%emt 0:00:07]} Kc4 {[%emt 0:00:01]} 57. Ke5 {[%emt 0:00:08]} Kd3 {[%emt 0:00:44]} 58. f4 $11 {[%emt 0:00:38]} Ke3 {[%emt 0:00:02]} 59. Kf5 {[%emt 0:00:18]} g6+ {[%emt 0:00:56]} 60. Kxg6 {[%emt 0:00:15]} Kxf4 {[%emt 0:00:04]} 1/2-1/2

[Event "LJ Slovak Open 2022"]
[Site "Liptovsky Jan"]
[Date "2022.06.25"]
[Round "4.22"]
[White "Brida, Lukas"]
[Black "Janik, Marek Tobias"]
[Result "1-0"]
[ECO "D36"]
[WhiteElo "1673"]
[BlackElo "1840"]
[Annotator "NA RC"]
[PlyCount "109"]
[EventDate "2022.06.23"]
[EventType "swiss"]
[EventCountry "SVK"]
[SourceTitle "playchess.com"]
[Source "ChessBase"]
[SourceQuality "1"]
[TimeControl "3600+30"]

1. d4 {[%emt 0:01:06]} d5 {[%emt 0:00:05]} 2. c4 {[%emt 0:00:22]} e6 {[%emt 0:00:11]} 3. Nc3 {[%emt 0:00:06]} Nf6 {[%emt 0:00:14]} 4. cxd5 {[%emt 0:00:08]} exd5 {[%emt 0:00:17]} 5. Bg5 {[%emt 0:00:10]} Nbd7 {[%emt 0:01:09]} 6. e3 {[%emt 0:07:57]} c6 {[%emt 0:02:50]} 7. Bd3 {[%emt 0:04:46]} Be7 {[%emt 0:00:35]} 8. Qc2 {[%emt 0:00:13]} h6 {[%emt 0:00:35]} 9. Bh4 {[%emt 0:00:12]} O-O {[%emt 0:01:01]} 10. Nge2 {[%emt 0:00:21]} Re8 {[%emt 0:04:13]} 11. f3 {[%emt 0:09:03]} c5 {[%emt 0:07:17]} 12. O-O {[%emt 0:05:25]} a6 {[%emt 0:04:15]} 13. Bf2 {[%emt 0:07:33]} b5 {[%emt 0:04:59]} 14. Ng3 {[%emt 0:05:10]} c4 {[%emt 0:06:52]} 15. Bf5 {[%emt 0:00:46]} Nb6 {[%emt 0:00:11]} 16. e4 {[%emt 0:03:38]} g6 {[%emt 0:01:11]} 17. e5 {[%emt 0:03:06]} Nh7 {[%emt 0:07:40]} 18. Bxc8 {[%emt 0:06:26]} Rxc8 {[%emt 0:00:04]} 19. f4 {[%emt 0:00:16]} Qd7 {[%emt 0:09:09]} 20. f5 {[%emt 0:00:17]} Rc6 {[%emt 0:02:19]} 21. Nce2 {[%emt 0:03:21]} Bg5 {[%emt 0:01:12]} 22. h4 {[%emt 0:02:26]} Bxh4 {[%emt 0:02:24]} 23. Nf4 {[%emt 0:02:01]} Bg5 {[%emt 0:00:40]} 24. e6 {[%emt 0:00:12]} fxe6 {[%emt 0:02:05]} 25. fxe6 {[%emt 0:00:13]} Qg7 {[%emt 0:00:58]} 26. Nxg6 {[%emt 0:00:41]} Rcxe6 {[%emt 0:00:44]} 27. Ne5 {[%emt 0:00:15]} Nf6 {[%emt 0:04:24]} 28. Nf5 {[%emt 0:00:10]} Qh7 {[%emt 0:00:21]} 29. Rae1 {[%emt 0:03:28]} Ne4 {[%emt 0:01:03]} 30. Be3 {[%emt 0:00:31]} Rf8 {[%emt 0:02:10]} 31. Bxg5 {[%emt 0:00:12]} hxg5 {[%emt 0:00:08]} 32. Rxe4 {[%emt 0:02:09]} Rxf5 {[%emt 0:02:42]} 33. Rxf5 {[%emt 0:00:20]} Qxf5 {[%emt 0:00:12]} 34. Re2 {[%emt 0:00:06]} Qxc2 {[%emt 0:00:35]} 35. Rxc2 {[%emt 0:00:06]} Rxe5 {[%emt 0:02:18]} 36. dxe5 {[%emt 0:00:06]} d4 {[%emt 0:00:02]} 37. Kf2 {[%emt 0:00:16]} Kf7 {[%emt 0:00:03]} 38. Kf3 {[%emt 0:00:08]} Ke6 {[%emt 0:00:04]} 39. Ke4 {[%emt 0:00:15]} d3 {[%emt 0:00:04]} 40. Rf2 {[%emt 0:00:08]} Nd5 {[%emt 0:01:06]} 41. Kd4 {[%emt 0:01:37]} Nf4 {[%emt 0:00:42]} 42. Ke4 {[%emt 0:01:38]} Nd5 {[%emt 0:01:44]} 43. g3 {[%emt 0:00:20]} g4 {[%emt 0:00:21]} 44. Kd4 {[%emt 0:00:39]} a5 {[%emt 0:00:44]} 45. b3 {[%emt 0:00:19]} c3 {[%emt 0:00:20]} 46. Kxd3 {[%emt 0:00:21]} Kxe5 {[%emt 0:00:04]} 47. Re2+ {[%emt 0:00:29]} Kd6 {[%emt 0:00:38]} 48. a3 {[%emt 0:00:39]} Kc5 {[%emt 0:00:46]} 49. Re4 {[%emt 0:00:30]} Nf6 {[%emt 0:00:38]} 50. Rf4 {[%emt 0:00:43]} Nd5 {[%emt 0:00:32]} 51. Rxg4 {[%emt 0:00:17]} b4 {[%emt 0:00:14]} 52. a4 {[%emt 0:00:35]} Kd6 {[%emt 0:00:46]} 53. Rg6+ {[%emt 0:00:31]} Ke5 {[%emt 0:00:34]} 54. Ra6 {[%emt 0:00:24]} Nc7 {[%emt 0:00:34]} 55. Rxa5+ {[%emt 0:00:25]} 1-0

[Event "LJ Slovak Open 2022"]
[Site "Liptovsky Jan"]
[Date "2022.06.25"]
[Round "4.23"]
[White "Harvan, Tomas"]
[Black "Lis, Maksymilian"]
[Result "0-1"]
[ECO "B01"]
[WhiteElo "1853"]
[BlackElo "1511"]
[Annotator "NA RC"]
[PlyCount "82"]
[EventDate "2022.06.23"]
[EventType "swiss"]
[EventCountry "SVK"]
[SourceTitle "playchess.com"]
[Source "ChessBase"]
[SourceQuality "1"]
[TimeControl "3600+30"]

1. e4 {[%emt 0:02:50]} d5 {[%emt 0:00:19]} 2. exd5 {[%emt 0:00:14]} Qxd5 {[%emt 0:00:09]} 3. Nc3 {[%emt 0:00:06]} Qd8 {[%emt 0:00:05]} 4. d4 {[%emt 0:00:33]} Nf6 {[%emt 0:00:07]} 5. Nf3 {[%emt 0:00:27]} Bg4 {[%emt 0:00:08]} 6. Be3 {[%emt 0:01:57]} e6 {[%emt 0:00:16]} 7. h3 {[%emt 0:00:19]} Bxf3 {[%emt 0:00:06]} 8. Qxf3 {[%emt 0:00:11]} c6 {[%emt 0:00:06]} 9. a3 {[%emt 0:04:02]} Be7 {[%emt 0:02:57]} 10. Bd3 {[%emt 0:00:36]} Nbd7 {[%emt 0:01:13]} 11. O-O {[%emt 0:03:35]} O-O {[%emt 0:00:08]} 12. Rfd1 {[%emt 0:05:49]} Qc7 {[%emt 0:04:14]} 13. Bf4 {[%emt 0:06:54]} Qb6 {[%emt 0:01:38]} 14. b4 {[%emt 0:04:12]} Nd5 {[%emt 0:00:12]} 15. Ne2 {[%emt 0:03:20]} Nxf4 {[%emt 0:00:41]} 16. Nxf4 {[%emt 0:00:46]} a5 {[%emt 0:18:31]} 17. b5 {[%emt 0:05:07]} e5 {[%emt 0:07:17]} 18. bxc6 {[%emt 0:04:08]} Qxc6 {[%emt 0:06:15]} 19. Be4 {[%emt 0:02:36]} Qc4 {[%emt 0:06:04]} 20. Nd5 {[%emt 0:03:26]} Rfe8 {[%emt 0:06:38]} 21. Qf5 {[%emt 0:02:43]} Nf6 {[%emt 0:00:32]} 22. Nb6 {[%emt 0:05:05]} Qe2 {[%emt 0:00:29]} 23. Bd3 {[%emt 0:02:23]} g6 {[%emt 0:00:32]} 24. Bxe2 {[%emt 0:00:35]} gxf5 {[%emt 0:00:05]} 25. Nxa8 {[%emt 0:00:10]} Rxa8 {[%emt 0:00:02]} 26. dxe5 {[%emt 0:00:14]} Ne4 {[%emt 0:00:02]} 27. Rd7 {[%emt 0:00:23]} Bc5 {[%emt 0:00:04]} 28. Bc4 {[%emt 0:03:18]} Bxf2+ {[%emt 0:01:18]} 29. Kf1 {[%emt 0:00:38]} Rc8 {[%emt 0:00:37]} 30. Bxf7+ {[%emt 0:00:45]} Kf8 {[%emt 0:00:06]} 31. Bb3 {[%emt 0:01:43]} h5 {[%emt 0:00:49]} 32. Rf7+ {[%emt 0:00:18]} Ke8 {[%emt 0:00:19]} 33. Rxf5 {[%emt 0:00:59]} Bd4 {[%emt 0:00:34]} 34. Rf4 {[%emt 0:04:53]} Ng3+ {[%emt 0:00:17]} 35. Ke1 {[%emt 0:00:03]} Bxa1 {[%emt 0:00:09]} 36. Kf2 {[%emt 0:01:41]} Bxe5 {[%emt 0:01:20]} 37. Rf3 {[%emt 0:01:11]} h4 {[%emt 0:03:47]} 38. Re3 {[%emt 0:00:45]} Rc5 {[%emt 0:00:04]} 39. Rd3 {[%emt 0:00:31]} b5 {[%emt 0:01:10]} 40. a4 {[%emt 0:00:31]} b4 {[%emt 0:00:37]} 41. Rf3 {[%emt 0:00:30]} Bd4+ {[%emt 0:00:19]} 0-1

[Event "LJ Slovak Open 2022"]
[Site "Liptovsky Jan"]
[Date "2022.06.25"]
[Round "4.24"]
[White "Carnecka, Stella"]
[Black "Valko, Michal"]
[Result "0-1"]
[ECO "B43"]
[WhiteElo "1648"]
[BlackElo "1906"]
[Annotator "RC"]
[PlyCount "40"]
[EventDate "2022.06.23"]
[EventType "swiss"]
[EventCountry "SVK"]
[SourceTitle "playchess.com"]
[Source "ChessBase"]
[SourceQuality "1"]
[TimeControl "3600+30"]

1. e4 {[%emt 0:00:06]} c5 {[%emt 0:02:59]} 2. Nf3 {[%emt 0:01:39]} e6 {[%emt 0:00:30]} 3. d4 {[%emt 0:00:30]} cxd4 {[%emt 0:00:00]} 4. Nxd4 {[%emt 0:00:13]} Nf6 {[%emt 0:00:50]} 5. Nc3 {[%emt 0:00:47]} a6 {[%emt 0:00:30]} 6. a3 {[%emt 0:02:02]} Qc7 {[%emt 0:00:30]} 7. Be2 {[%emt 0:00:30]} b6 {[%emt 0:00:35]} 8. Nf3 {[%emt 0:04:06]} d6 {[%emt 0:00:55]} 9. O-O {[%emt 0:01:33]} Bb7 {[%emt 0:00:14]} 10. Bd3 {[%emt 0:01:07]} Be7 {[%emt 0:00:30]} 11. h3 {[%emt 0:08:06]} Nbd7 {[%emt 0:02:35]} 12. Re1 {[%emt 0:03:33]} O-O {[%emt 0:02:04]} 13. Bf4 {[%emt 0:02:50]} Rfc8 {[%emt 0:08:09]} 14. Nd2 {[%emt 0:07:30]} h6 {[%emt 0:05:31]} 15. Nc4 {[%emt 0:06:33]} b5 {[%emt 0:01:53]} 16. Nxd6 {[%emt 0:06:28]} Bxd6 {[%emt 0:00:29]} 17. e5 {[%emt 0:02:19]} Nxe5 {[%emt 0:00:30]} 18. Be2 {[%emt 0:00:30]} Kh7 {[%emt 0:05:20]} 19. h4 {[%emt 0:06:32]} Kg6 {[%emt 0:00:00]} 20. g3 {[%emt 0:00:25]} Kf5 {[%emt 0:00:00]} 0-1

[Event "LJ Slovak Open 2022"]
[Site "Liptovsky Jan"]
[Date "2022.06.25"]
[Round "4.25"]
[White "Gollner, Martin"]
[Black "Mikula, Maciej"]
[Result "1-0"]
[ECO "B38"]
[WhiteElo "1585"]
[BlackElo "1567"]
[Annotator "NA RC"]
[PlyCount "103"]
[EventDate "2022.06.23"]
[EventType "swiss"]
[EventCountry "SVK"]
[SourceTitle "playchess.com"]
[Source "ChessBase"]
[SourceQuality "1"]
[TimeControl "3600+30"]

1. e4 {[%emt 0:00:06]} c5 {[%emt 0:01:11]} 2. Nf3 {[%emt 0:00:09]} g6 {[%emt 0:00:34]} 3. d4 {[%emt 0:00:14]} cxd4 {[%emt 0:00:22]} 4. Nxd4 {[%emt 0:00:08]} Bg7 {[%emt 0:00:37]} 5. c4 {[%emt 0:01:06]} Nc6 {[%emt 0:02:29]} 6. Be3 {[%emt 0:00:43]} Nh6 {[%emt 0:03:27]} 7. Be2 {[%emt 0:09:30]} O-O {[%emt 0:06:26]} 8. f3 {[%emt 0:11:28]} f5 {[%emt 0:05:38]} 9. Nc3 {[%emt 0:09:30]} f4 {[%emt 0:03:08]} 10. Bf2 {[%emt 0:00:51]} d6 {[%emt 0:02:47]} 11. O-O {[%emt 0:02:50]} g5 {[%emt 0:11:42]} 12. Nxc6 {[%emt 0:07:26]} bxc6 {[%emt 0:00:13]} 13. g3 {[%emt 0:00:32]} Qe8 {[%emt 0:04:59]} 14. Kh1 {[%emt 0:02:25]} Qh5 {[%emt 0:08:43]} 15. Rg1 {[%emt 0:02:59]} g4 {[%emt 0:01:59]} 16. gxf4 {[%emt 0:03:57]} Rxf4 {[%emt 0:02:40]} 17. Be3 {[%emt 0:01:33]} gxf3 {[%emt 0:05:03]} 18. Bxf4 {[%emt 0:01:44]} Ng4 {[%emt 0:01:10]} 19. Bxf3 {[%emt 0:04:46]} Nf2+ {[%emt 0:00:16]} 20. Kg2 {[%emt 0:00:01]} Qh4 {[%emt 0:00:14]} 21. Bg3 {[%emt 0:00:27]} Nxd1 {[%emt 0:02:20]} 22. Bxh4 {[%emt 0:00:06]} Ne3+ {[%emt 0:00:13]} 23. Kf2 {[%emt 0:00:27]} Nxc4 {[%emt 0:00:23]} 24. Bxe7 {[%emt 0:01:05]} Kh8 {[%emt 0:00:14]} 25. Rg2 {[%emt 0:03:01]} Bd4+ {[%emt 0:00:49]} 26. Kg3 {[%emt 0:01:46]} Ne3 {[%emt 0:02:09]} 27. Rd2 {[%emt 0:00:54]} c5 {[%emt 0:00:48]} 28. Bxd6 {[%emt 0:01:51]} Ba6 {[%emt 0:00:07]} 29. Rxd4 {[%emt 0:01:12]} cxd4 {[%emt 0:00:28]} 30. Be5+ {[%emt 0:00:01]} Kg8 {[%emt 0:00:13]} 31. Bxd4 {[%emt 0:00:11]} Nc2 {[%emt 0:01:17]} 32. Rd1 {[%emt 0:01:49]} Kf7 {[%emt 0:00:02]} 33. Rd2 {[%emt 0:00:32]} Ne1 {[%emt 0:00:27]} 34. Bh5+ {[%emt 0:00:22]} Ke6 {[%emt 0:00:13]} 35. Kf2 {[%emt 0:01:07]} Rf8+ {[%emt 0:00:31]} 36. Ke3 {[%emt 0:00:55]} Rg8 {[%emt 0:01:05]} 37. Be2 {[%emt 0:00:34]} Ng2+ {[%emt 0:00:35]} 38. Kf3 {[%emt 0:00:34]} Nh4+ {[%emt 0:00:21]} 39. Kf2 {[%emt 0:00:23]} Rg2+ {[%emt 0:00:49]} 40. Ke1 {[%emt 0:00:01]} Bxe2 {[%emt 0:00:30]} 41. Rxe2 {[%emt 0:00:03]} Nf3+ {[%emt 0:00:15]} 42. Kf1 {[%emt 0:00:30]} Rxe2 {[%emt 0:00:47]} 43. Kxe2 {[%emt 0:00:01]} Nxd4+ {[%emt 0:00:09]} 44. Ke3 {[%emt 0:00:39]} Ke5 {[%emt 0:00:23]} 45. a3 {[%emt 0:00:18]} a5 {[%emt 0:00:17]} 46. h3 {[%emt 0:01:10]} Nc2+ {[%emt 0:00:33]} 47. Kd3 {[%emt 0:00:10]} Ne1+ {[%emt 0:00:58]} 48. Kc4 {[%emt 0:00:57]} h5 {[%emt 0:00:20]} 49. Kb5 {[%emt 0:00:07]} h4 {[%emt 0:00:14]} 50. Kxa5 {[%emt 0:00:05]} Nf3 {[%emt 0:00:08]} 51. b4 {[%emt 0:00:10]} Ng5 {[%emt 0:00:27]} 52. b5 {[%emt 0:00:04]} 1-0

[Event "LJ Slovak Open 2022"]
[Site "Liptovsky Jan"]
[Date "2022.06.25"]
[Round "4.26"]
[White "Stric, Dusan"]
[Black "Ropovik, Samuel"]
[Result "1-0"]
[ECO "A21"]
[WhiteElo "2021"]
[BlackElo "1453"]
[Annotator "RC"]
[PlyCount "103"]
[EventDate "2022.06.23"]
[EventType "swiss"]
[EventCountry "SVK"]
[SourceTitle "playchess.com"]
[Source "ChessBase"]
[SourceQuality "1"]
[TimeControl "3600+30"]

1. c4 {[%emt 0:09:07]} e5 {[%emt 0:00:19]} 2. Nc3 {[%emt 0:00:02]} Bb4 {[%emt 0:00:18]} 3. e3 {[%emt 0:00:03]} Bxc3 {[%emt 0:00:30]} 4. dxc3 {[%emt 0:00:59]} Nc6 {[%emt 0:01:35]} 5. g3 {[%emt 0:01:58]} d6 {[%emt 0:00:55]} 6. Bg2 {[%emt 0:00:02]} f5 {[%emt 0:01:52]} 7. Ne2 {[%emt 0:01:14]} Nf6 {[%emt 0:00:21]} 8. O-O {[%emt 0:00:11]} O-O {[%emt 0:00:49]} 9. b3 {[%emt 0:01:12]} Be6 {[%emt 0:02:29]} 10. Qc2 {[%emt 0:02:45]} Qd7 {[%emt 0:01:54]} 11. f4 {[%emt 0:02:52]} Rae8 {[%emt 0:07:57]} 12. Ba3 {[%emt 0:01:32]} a5 {[%emt 0:03:32]} 13. h3 {[%emt 0:05:58]} a4 {[%emt 0:04:03]} 14. Bxc6 {[%emt 0:09:51]} Qxc6 {[%emt 0:05:18]} 15. fxe5 {[%emt 0:00:26]} dxe5 {[%emt 0:06:08]} 16. Bxf8 {[%emt 0:00:04]} Rxf8 {[%emt 0:00:17]} 17. Kh2 {[%emt 0:01:13]} Qb6 {[%emt 0:01:20]} 18. Rae1 {[%emt 0:01:47]} Ne4 {[%emt 0:01:52]} 19. Ng1 {[%emt 0:01:39]} Rd8 {[%emt 0:09:40]} 20. Nf3 {[%emt 0:00:07]} c6 {[%emt 0:05:36]} 21. Rg1 {[%emt 0:05:19]} Qa5 {[%emt 0:04:15]} 22. b4 {[%emt 0:01:47]} Qa7 {[%emt 0:01:42]} 23. c5 {[%emt 0:02:23]} Qa6 {[%emt 0:01:49]} 24. Rd1 {[%emt 0:03:48]} Qa8 {[%emt 0:03:24]} 25. Rxd8+ {[%emt 0:04:55]} Qxd8 {[%emt 0:00:13]} 26. Rd1 {[%emt 0:04:14]} Qe7 {[%emt 0:03:21]} 27. c4 {[%emt 0:03:23]} h6 {[%emt 0:01:50]} 28. a3 {[%emt 0:01:03]} g5 {[%emt 0:00:39]} 29. Nxe5 {[%emt 0:00:47]} Qc7 {[%emt 0:00:27]} 30. Qb2 {[%emt 0:00:02]} Bxc4 {[%emt 0:00:28]} 31. Qd4 {[%emt 0:00:33]} Bd5 {[%emt 0:00:27]} 32. Rf1 {[%emt 0:01:51]} Qh7 {[%emt 0:00:33]} 33. Nd3 {[%emt 0:01:18]} Qc7 {[%emt 0:00:31]} 34. Qe5 {[%emt 0:00:13]} Qd8 {[%emt 0:00:34]} 35. Rxf5 {[%emt 0:00:07]} Qd7 {[%emt 0:00:26]} 36. Qb8+ {[%emt 0:02:14]} Kh7 {[%emt 0:00:34]} 37. Qf8 {[%emt 0:00:39]} Bc4 {[%emt 0:00:28]} 38. Nf2 {[%emt 0:00:45]} Nxf2 {[%emt 0:00:30]} 39. Rxf2 {[%emt 0:00:17]} Qe6 {[%emt 0:00:16]} 40. Qf5+ {[%emt 0:00:14]} Kg7 {[%emt 0:00:44]} 41. Qxe6 {[%emt 0:00:10]} Bxe6 {[%emt 0:00:26]} 42. e4 {[%emt 0:00:31]} Bb3 {[%emt 0:00:30]} 43. e5 {[%emt 0:00:44]} Bd5 {[%emt 0:00:35]} 44. Rf6 {[%emt 0:00:10]} Bf7 {[%emt 0:00:31]} 45. Kg2 {[%emt 0:00:22]} Bd5+ {[%emt 0:00:06]} 46. Kf2 {[%emt 0:00:10]} Bf7 {[%emt 0:00:37]} 47. Ke3 {[%emt 0:00:03]} Be8 {[%emt 0:00:30]} 48. h4 {[%emt 0:00:54]} Bd7 {[%emt 0:00:48]} 49. hxg5 {[%emt 0:00:41]} hxg5 {[%emt 0:00:08]} 50. Ke4 {[%emt 0:00:11]} Bc8 {[%emt 0:00:14]} 51. Rd6 {[%emt 0:00:20]} Kf7 {[%emt 0:00:17]} 52. Rd8 {[%emt 0:00:31]} 1-0

[Event "LJ Slovak Open 2022"]
[Site "Liptovsky Jan"]
[Date "2022.06.25"]
[Round "4.27"]
[White "Bohacek, Ludovit"]
[Black "Korenova, Simona"]
[Result "0-1"]
[ECO "B92"]
[WhiteElo "1594"]
[BlackElo "1895"]
[Annotator "NA RC"]
[PlyCount "68"]
[EventDate "2022.06.23"]
[EventType "swiss"]
[EventCountry "SVK"]
[SourceTitle "playchess.com"]
[Source "ChessBase"]
[SourceQuality "1"]
[TimeControl "3600+30"]

1. e4 {[%emt 0:00:17]} c5 {[%emt 0:00:14]} 2. Nf3 {[%emt 0:00:22]} d6 {[%emt 0:00:06]} 3. d4 {[%emt 0:00:32]} cxd4 {[%emt 0:00:08]} 4. Nxd4 {[%emt 0:00:30]} Nf6 {[%emt 0:00:13]} 5. Nc3 {[%emt 0:00:46]} a6 {[%emt 0:00:13]} 6. a4 {[%emt 0:00:50]} e5 {[%emt 0:01:59]} 7. Nb3 {[%emt 0:02:02]} Be6 {[%emt 0:00:29]} 8. Bg5 {[%emt 0:02:36]} Be7 {[%emt 0:00:45]} 9. Bxf6 {[%emt 0:01:06]} Bxf6 {[%emt 0:00:14]} 10. Nd5 {[%emt 0:00:20]} Nd7 {[%emt 0:02:03]} 11. Be2 {[%emt 0:03:11]} O-O {[%emt 0:00:56]} 12. O-O {[%emt 0:00:13]} Rc8 {[%emt 0:02:04]} 13. c3 {[%emt 0:05:56]} Bxd5 {[%emt 0:15:52]} 14. Qxd5 {[%emt 0:01:06]} Qc7 {[%emt 0:02:04]} 15. Bg4 {[%emt 0:02:09]} Nb6 {[%emt 0:01:45]} 16. Qd1 {[%emt 0:06:37]} Rcd8 {[%emt 0:01:18]} 17. Qe2 {[%emt 0:05:13]} d5 {[%emt 0:02:52]} 18. exd5 {[%emt 0:00:37]} Nxd5 {[%emt 0:00:36]} 19. g3 {[%emt 0:00:12]} Be7 {[%emt 0:01:14]} 20. Bf5 {[%emt 0:02:08]} g6 {[%emt 0:01:40]} 21. Bd3 {[%emt 0:01:26]} Kh8 {[%emt 0:04:06]} 22. Rfd1 {[%emt 0:01:00]} f5 {[%emt 0:01:14]} 23. Bc4 {[%emt 0:00:29]} Nb6 {[%emt 0:01:34]} 24. Be6 {[%emt 0:03:35]} Rf6 {[%emt 0:05:03]} 25. Rxd8+ {[%emt 0:00:38]} Bxd8 {[%emt 0:00:27]} 26. a5 {[%emt 0:01:19]} Rxe6 {[%emt 0:00:41]} 27. axb6 {[%emt 0:00:18]} Qxb6 {[%emt 0:00:55]} 28. Na5 {[%emt 0:00:50]} e4 {[%emt 0:03:16]} 29. Qc4 {[%emt 0:00:41]} e3 {[%emt 0:03:17]} 30. Kf1 {[%emt 0:06:06]} Qxb2 {[%emt 0:14:17]} 31. Ra2 {[%emt 0:00:38]} e2+ {[%emt 0:01:28]} 32. Kg2 {[%emt 0:00:29]} Qxa2 {[%emt 0:00:30]} 33. Qxa2 {[%emt 0:01:04]} e1=Q {[%emt 0:00:08]} 34. Nxb7 {[%emt 0:01:03]} Re2 {[%emt 0:00:57]} 0-1

[Event "LJ Slovak Open 2022"]
[Site "Liptovsky Jan"]
[Date "2022.06.25"]
[Round "4.28"]
[White "Mydliar, Jan"]
[Black "Sekova, Olivia"]
[Result "1-0"]
[ECO "B53"]
[WhiteElo "1885"]
[BlackElo "1708"]
[Annotator "NA RC"]
[PlyCount "78"]
[EventDate "2022.06.23"]
[EventType "swiss"]
[EventCountry "SVK"]
[SourceTitle "playchess.com"]
[Source "ChessBase"]
[SourceQuality "1"]
[TimeControl "3600+30"]

1. e4 {[%emt 0:00:05]} c5 {[%emt 0:00:12]} 2. Nf3 {[%emt 0:00:08]} Nc6 {[%emt 0:00:11]} 3. Bb5 {[%emt 0:00:20]} d6 {[%emt 0:00:15]} 4. d4 {[%emt 0:00:21]} cxd4 {[%emt 0:00:41]} 5. Qxd4 {[%emt 0:00:15]} Bd7 {[%emt 0:01:18]} 6. Bxc6 {[%emt 0:00:29]} Bxc6 {[%emt 0:00:24]} 7. Nc3 {[%emt 0:00:26]} Nf6 {[%emt 0:01:33]} 8. Bg5 {[%emt 0:00:42]} e6 {[%emt 0:01:03]} 9. O-O-O {[%emt 0:00:53]} Be7 {[%emt 0:00:17]} 10. Qd3 {[%emt 0:04:38]} O-O {[%emt 0:04:42]} 11. Kb1 {[%emt 0:01:46]} a5 {[%emt 0:14:56]} 12. Nd4 {[%emt 0:02:49]} a4 {[%emt 0:06:08]} 13. a3 {[%emt 0:02:45]} Qa5 {[%emt 0:06:49]} 14. f4 {[%emt 0:04:42]} Rfe8 {[%emt 0:06:51]} 15. f5 {[%emt 0:08:58]} Nxe4 {[%emt 0:08:06]} 16. Nxc6 {[%emt 0:08:42]} Nxc3+ {[%emt 0:00:32]} 17. Qxc3 {[%emt 0:00:11]} bxc6 {[%emt 0:00:55]} 18. Qxa5 {[%emt 0:02:16]} Rxa5 {[%emt 0:00:13]} 19. Bxe7 {[%emt 0:00:28]} Rxe7 {[%emt 0:00:32]} 20. Rxd6 {[%emt 0:00:48]} h6 {[%emt 0:02:03]} 21. f6 {[%emt 0:02:22]} gxf6 {[%emt 0:00:40]} 22. Rxc6 {[%emt 0:00:13]} Rd7 {[%emt 0:00:23]} 23. Kc1 {[%emt 0:00:36]} Rad5 {[%emt 0:03:45]} 24. Rc4 {[%emt 0:00:32]} Rd2 {[%emt 0:00:23]} 25. g4 {[%emt 0:04:16]} Rg2 {[%emt 0:00:28]} 26. h4 {[%emt 0:00:21]} Rdd2 {[%emt 0:02:57]} 27. Rd1 {[%emt 0:03:38]} Rde2 {[%emt 0:00:41]} 28. Rd7 {[%emt 0:01:00]} e5 {[%emt 0:01:06]} 29. Rc8+ {[%emt 0:02:20]} Kg7 {[%emt 0:00:10]} 30. Rdd8 {[%emt 0:06:14]} Rg1+ {[%emt 0:00:24]} 31. Rd1 {[%emt 0:00:20]} Rxg4 {[%emt 0:00:04]} 32. c4 {[%emt 0:01:27]} Rgg2 {[%emt 0:00:48]} 33. c5 {[%emt 0:04:12]} Rc2+ {[%emt 0:00:44]} 34. Kb1 {[%emt 0:00:09]} Rxb2+ {[%emt 0:00:03]} 35. Ka1 {[%emt 0:00:05]} Ra2+ {[%emt 0:01:34]} 36. Kb1 {[%emt 0:00:09]} Rxa3 {[%emt 0:00:04]} 37. c6 {[%emt 0:00:46]} Raa2 {[%emt 0:04:14]} 38. Rb8 {[%emt 0:01:12]} Ra3 {[%emt 0:02:49]} 39. c7 {[%emt 0:00:41]} Rga2 {[%emt 0:00:31]} 1-0